[Event "Titled Tuesday Blitz February 14 Late 2023"]
[White "Martinez Reyes, Pedro Ramon"]
[Black "Cardozo Munar, Carlos Eduardo"]
[WhiteFideId "3901807"]
[BlackFideId "4409477"]
[WhiteElo "2376"]
[BlackElo "2043"]
[Result "1-0"]
[Round "01"]
[TimeControl "180+2"]
[Date "2023.02.14"]
[WhiteClock "0:01:00"]
[BlackClock "0:00:50"]

1. c4 {[%clk 0:02:58]}  Nf6 {[%clk 0:02:59]} 2. Nc3 {[%clk 0:02:58]}  g6 {[%clk 0:02:57]} 3. g3 {[%clk 0:02:58]}  Bg7 {[%clk 0:02:57]} 4. Bg2 {[%clk 0:02:59]}  O-O {[%clk 0:02:58]} 5. Nf3 {[%clk 0:02:59]}  d6 {[%clk 0:02:59]} 6. d4 {[%clk 0:02:57]}  Nbd7 {[%clk 0:03:00]} 7. O-O {[%clk 0:02:56]}  c5 {[%clk 0:03:01]} 8. d5 {[%clk 0:02:55]}  Rb8 {[%clk 0:03:01]} 9. e4 {[%clk 0:02:55]}  a6 {[%clk 0:03:01]} 10. a4 {[%clk 0:02:52]}  Nb6 {[%clk 0:02:51]} 11. Qe2 {[%clk 0:02:46]}  Bg4 {[%clk 0:02:50]} 12. h3 {[%clk 0:02:46]}  Bxf3 {[%clk 0:02:49]} 13. Bxf3 {[%clk 0:02:47]}  Na8 {[%clk 0:02:48]} 14. h4 {[%clk 0:02:45]}  Nc7 {[%clk 0:02:48]} 15. h5 {[%clk 0:02:45]}  Qd7 {[%clk 0:02:46]} 16. a5 {[%clk 0:02:39]}  b5 {[%clk 0:02:40]} 17. axb6 {[%clk 0:02:40]}  Rxb6 {[%clk 0:02:40]} 18. Kg2 {[%clk 0:02:36]}  e6 {[%clk 0:02:34]} 19. Rh1 {[%clk 0:02:34]}  exd5 {[%clk 0:02:34]} 20. exd5 {[%clk 0:02:35]}  Re8 {[%clk 0:02:34]} 21. Qd3 {[%clk 0:02:33]}  Re7 {[%clk 0:02:23]} 22. Bg5 {[%clk 0:02:06]}  Rxb2 {[%clk 0:02:22]} 23. Rab1 {[%clk 0:02:04]}  Rxb1 {[%clk 0:02:12]} 24. Rxb1 {[%clk 0:02:05]}  Re8 {[%clk 0:02:11]} 25. h6 {[%clk 0:02:01]}  Bh8 {[%clk 0:02:09]} 26. Rb6 {[%clk 0:02:01]}  Ra8 {[%clk 0:01:43]} 27. Qb1 {[%clk 0:01:55]}  Nce8 {[%clk 0:01:39]} 28. Rb7 {[%clk 0:01:55]}  Qf5 {[%clk 0:01:34]} 29. Qxf5 {[%clk 0:01:45]}  gxf5 {[%clk 0:01:35]} 30. Na4 {[%clk 0:01:43]}  Ng4 {[%clk 0:01:31]} 31. Be2 {[%clk 0:01:36]}  Bf6 {[%clk 0:01:27]} 32. Bf4 {[%clk 0:01:33]}  Be5 {[%clk 0:01:26]} 33. Bxg4 {[%clk 0:01:33]}  Bxf4 {[%clk 0:01:17]} 34. Bh5 {[%clk 0:01:25]}  Bxh6 {[%clk 0:01:12]} 35. Bxf7+ {[%clk 0:01:25]}  Kh8 {[%clk 0:01:10]} 36. Be6 {[%clk 0:01:23]}  f4 {[%clk 0:01:07]} 37. Nb6 {[%clk 0:01:14]}  Rd8 {[%clk 0:01:05]} 38. Ra7 {[%clk 0:01:14]}  fxg3 {[%clk 0:01:05]} 39. fxg3 {[%clk 0:01:14]}  Ng7 {[%clk 0:01:02]} 40. Bg4 {[%clk 0:01:01]}  Rg8 {[%clk 0:00:56]} 41. Rxa6 {[%clk 0:01:00]}  Ne8 {[%clk 0:00:56]} 42. Be6 {[%clk 0:01:00]}  Rg6 {[%clk 0:00:56]} 43. Ra8 {[%clk 0:01:00]}  Bf4 {[%clk 0:00:49]} 44. Rxe8+ {[%clk 0:00:59]}  Kg7 {[%clk 0:00:48]} 45. Rg8+ {[%clk 0:01:00]}  Kf6 {[%clk 0:00:48]} 46. Rxg6+ {[%clk 0:01:01]}  hxg6 {[%clk 0:00:49]} 47. gxf4 {[%clk 0:01:01]}  g5 {[%clk 0:00:49]} 48. Nd7+ {[%clk 0:01:00]}  Kg6 {[%clk 0:00:49]} 49. f5+ {[%clk 0:01:00]}  Kg7 {[%clk 0:00:49]} 50. f6+ {[%clk 0:01:01]}  Kg6 {[%clk 0:00:49]} 51. f7 {[%clk 0:01:02]}  Kg7 {[%clk 0:00:49]} 52. f8=Q+ {[%clk 0:01:03]}  Kg6 {[%clk 0:00:50]} 53. Qf7+ {[%clk 0:01:03]}  Kh6 {[%clk 0:00:50]} 54. Nf6 {[%clk 0:01:03]}  g4 {[%clk 0:00:50]} 55. Qh5+ {[%clk 0:01:00]}  Kg7 {[%clk 0:00:50]} 56. Nxg4 {[%clk 0:00:59]}  Kf8 {[%clk 0:00:50]} 57. Qf7# {[%clk 0:01:00]} 1-0


[Site "https://www.chess.com"]

[Event "Titled Tuesday Blitz February 14 Late 2023"]
[White "Sailer, Mike"]
[Black "Perera Alfonso, Rene Humberto"]
[WhiteFideId "2012901"]
[BlackFideId "3514722"]
[WhiteElo "2109"]
[BlackElo "2320"]
[Result "0-1"]
[Round "01"]
[TimeControl "180+2"]
[Date "2023.02.14"]
[WhiteClock "0:00:36"]
[BlackClock "0:01:35"]

1. d4 {[%clk 0:03:00]}  d5 {[%clk 0:02:59]} 2. Bg5 {[%clk 0:02:57]}  h6 {[%clk 0:02:55]} 3. Bh4 {[%clk 0:02:57]}  c6 {[%clk 0:02:56]} 4. e3 {[%clk 0:02:54]}  Qb6 {[%clk 0:02:56]} 5. Qc1 {[%clk 0:02:39]}  e5 {[%clk 0:02:54]} 6. Nf3 {[%clk 0:02:35]}  e4 {[%clk 0:02:53]} 7. Nfd2 {[%clk 0:02:35]}  Be7 {[%clk 0:02:53]} 8. Bxe7 {[%clk 0:02:32]}  Nxe7 {[%clk 0:02:54]} 9. Be2 {[%clk 0:02:31]}  O-O {[%clk 0:02:53]} 10. O-O {[%clk 0:02:31]}  f5 {[%clk 0:02:53]} 11. f4 {[%clk 0:02:25]}  Be6 {[%clk 0:02:48]} 12. c4 {[%clk 0:02:22]}  Nd7 {[%clk 0:02:47]} 13. Nc3 {[%clk 0:02:19]}  Kh7 {[%clk 0:02:42]} 14. a3 {[%clk 0:02:00]}  Rg8 {[%clk 0:02:39]} 15. b4 {[%clk 0:02:00]}  g5 {[%clk 0:02:38]} 16. b5 {[%clk 0:01:52]}  gxf4 {[%clk 0:02:31]} 17. Rxf4 {[%clk 0:01:49]}  Ng6 {[%clk 0:02:30]} 18. Rf1 {[%clk 0:01:42]}  f4 {[%clk 0:02:30]} 19. bxc6 {[%clk 0:01:31]}  bxc6 {[%clk 0:02:25]} 20. Rb1 {[%clk 0:01:21]}  Qc7 {[%clk 0:02:24]} 21. cxd5 {[%clk 0:01:20]}  cxd5 {[%clk 0:02:24]} 22. Nb5 {[%clk 0:01:11]}  Qxc1 {[%clk 0:02:20]} 23. Rbxc1 {[%clk 0:01:07]}  fxe3 {[%clk 0:02:20]} 24. Nb3 {[%clk 0:01:07]}  Rac8 {[%clk 0:02:06]} 25. Nxa7 {[%clk 0:00:59]}  Rxc1 {[%clk 0:02:04]} 26. Rxc1 {[%clk 0:00:59]}  Nf4 {[%clk 0:02:02]} 27. Bb5 {[%clk 0:00:43]}  Rxg2+ {[%clk 0:02:00]} 28. Kh1 {[%clk 0:00:44]}  Rb2 {[%clk 0:01:59]} 29. Bxd7 {[%clk 0:00:43]}  Bxd7 {[%clk 0:01:51]} 30. Nc5 {[%clk 0:00:43]}  Bg4 {[%clk 0:01:49]} 31. Nd7 {[%clk 0:00:37]}  Bf3+ {[%clk 0:01:47]} 32. Kg1 {[%clk 0:00:37]}  Ne2+ {[%clk 0:01:35]} 33. Kf1 {[%clk 0:00:36]}  Nxc1 {[%clk 0:01:36]} 34. Nf6+ {[%clk 0:00:35]}  Kg6 {[%clk 0:01:36]} 35. Nxd5 {[%clk 0:00:36]}  e2+ {[%clk 0:01:35]} 0-1


[Site "https://www.chess.com"]

[Event "Titled Tuesday Blitz February 14 Late 2023"]
[White "Marin Masis, Jose Esteban"]
[Black "Krallis, Christos"]
[WhiteFideId "6508146"]
[BlackFideId "4298896"]
[WhiteElo "1938"]
[BlackElo "2344"]
[Result "0-1"]
[Round "01"]
[TimeControl "180+2"]
[Date "2023.02.14"]
[WhiteClock "0:00:17"]
[BlackClock "0:00:07"]

1. e4 {[%clk 0:02:59]}  e5 {[%clk 0:02:58]} 2. Nf3 {[%clk 0:02:56]}  Nc6 {[%clk 0:02:57]} 3. Bb5 {[%clk 0:02:53]}  Nge7 {[%clk 0:02:49]} 4. d4 {[%clk 0:02:52]}  exd4 {[%clk 0:02:43]} 5. Nxd4 {[%clk 0:02:52]}  a6 {[%clk 0:02:35]} 6. Ba4 {[%clk 0:02:46]}  Nxd4 {[%clk 0:02:21]} 7. Qxd4 {[%clk 0:02:47]}  Nc6 {[%clk 0:02:21]} 8. Qd3 {[%clk 0:02:25]}  Bb4+ {[%clk 0:02:13]} 9. c3 {[%clk 0:02:22]}  Be7 {[%clk 0:02:13]} 10. O-O {[%clk 0:02:21]}  O-O {[%clk 0:02:13]} 11. Bf4 {[%clk 0:02:19]}  d6 {[%clk 0:02:12]} 12. Nd2 {[%clk 0:02:11]}  Ne5 {[%clk 0:02:07]} 13. Qg3 {[%clk 0:02:05]}  Ng6 {[%clk 0:02:03]} 14. Be3 {[%clk 0:02:02]}  Bh4 {[%clk 0:01:12]} 15. Qf3 {[%clk 0:01:55]}  Bg5 {[%clk 0:01:08]} 16. Qe2 {[%clk 0:01:43]}  Bxe3 {[%clk 0:01:02]} 17. Qxe3 {[%clk 0:01:44]}  Bd7 {[%clk 0:01:01]} 18. Bc2 {[%clk 0:01:34]}  Re8 {[%clk 0:00:52]} 19. Nf3 {[%clk 0:01:28]}  Qe7 {[%clk 0:00:48]} 20. Rfe1 {[%clk 0:01:24]}  Bg4 {[%clk 0:00:44]} 21. h3 {[%clk 0:01:09]}  Bxf3 {[%clk 0:00:43]} 22. Qxf3 {[%clk 0:01:09]}  Qg5 {[%clk 0:00:26]} 23. Re3 {[%clk 0:00:56]}  Re7 {[%clk 0:00:24]} 24. Rae1 {[%clk 0:00:53]}  Rae8 {[%clk 0:00:24]} 25. Qg3 {[%clk 0:00:42]}  Qxg3 {[%clk 0:00:22]} 26. Rxg3 {[%clk 0:00:43]}  h5 {[%clk 0:00:21]} 27. Bb3 {[%clk 0:00:40]}  h4 {[%clk 0:00:20]} 28. Rxg6 {[%clk 0:00:39]}  Rxe4 {[%clk 0:00:17]} 29. Rxe4 {[%clk 0:00:36]}  Rxe4 {[%clk 0:00:18]} 30. Rg4 {[%clk 0:00:36]}  Re2 {[%clk 0:00:19]} 31. Rxh4 {[%clk 0:00:25]}  c6 {[%clk 0:00:19]} 32. Rb4 {[%clk 0:00:24]}  b5 {[%clk 0:00:19]} 33. Rf4 {[%clk 0:00:22]}  d5 {[%clk 0:00:19]} 34. Kh2 {[%clk 0:00:16]}  Rxb2 {[%clk 0:00:19]} 35. Kg3 {[%clk 0:00:17]}  a5 {[%clk 0:00:19]} 36. Rd4 {[%clk 0:00:14]}  a4 {[%clk 0:00:20]} 37. Bd1 {[%clk 0:00:15]}  Rxa2 {[%clk 0:00:20]} 38. Bf3 {[%clk 0:00:15]}  Ra3 {[%clk 0:00:20]} 39. Rd3 {[%clk 0:00:15]}  b4 {[%clk 0:00:20]} 40. Rd4 {[%clk 0:00:14]}  bxc3 {[%clk 0:00:19]} 41. Bd1 {[%clk 0:00:15]}  Ra1 {[%clk 0:00:14]} 42. Bxa4 {[%clk 0:00:14]}  c5 {[%clk 0:00:15]} 43. Rxd5 {[%clk 0:00:14]}  Rxa4 {[%clk 0:00:13]} 44. Rxc5 {[%clk 0:00:15]}  Ra3 {[%clk 0:00:14]} 45. Rc8+ {[%clk 0:00:15]}  Kh7 {[%clk 0:00:14]} 46. f3 {[%clk 0:00:16]}  Kg6 {[%clk 0:00:14]} 47. Rc6+ {[%clk 0:00:17]}  f6 {[%clk 0:00:14]} 48. Rc5 {[%clk 0:00:17]}  Rb3 {[%clk 0:00:15]} 49. h4 {[%clk 0:00:18]}  Kf7 {[%clk 0:00:15]} 50. h5 {[%clk 0:00:18]}  Ke6 {[%clk 0:00:14]} 51. f4 {[%clk 0:00:19]}  Kd6 {[%clk 0:00:12]} 52. Rc8 {[%clk 0:00:18]}  Kd5 {[%clk 0:00:09]} 53. Kg4 {[%clk 0:00:18]}  Kd4 {[%clk 0:00:09]} 54. g3 {[%clk 0:00:18]}  Rb4 {[%clk 0:00:09]} 55. Rd8+ {[%clk 0:00:18]}  Ke3 {[%clk 0:00:09]} 56. Rc8 {[%clk 0:00:18]}  Kd3 {[%clk 0:00:08]} 57. Kf5 {[%clk 0:00:18]}  Rc4 {[%clk 0:00:08]} 58. Rd8+ {[%clk 0:00:18]}  Ke2 {[%clk 0:00:09]} 59. Kg6 {[%clk 0:00:15]}  c2 {[%clk 0:00:08]} 60. Re8+ {[%clk 0:00:16]}  Kf2 {[%clk 0:00:08]} 61. Kxg7 {[%clk 0:00:16]}  c1=Q {[%clk 0:00:09]} 62. h6 {[%clk 0:00:16]}  Rc7+ {[%clk 0:00:09]} 63. Kg6 {[%clk 0:00:17]}  Qc2+ {[%clk 0:00:09]} 64. f5 {[%clk 0:00:17]}  Kxg3 {[%clk 0:00:07]} 65. Re3+ {[%clk 0:00:17]}  Kf4 {[%clk 0:00:07]} 66. Rh3 {[%clk 0:00:17]}  Qxf5# {[%clk 0:00:07]} 0-1


[Site "https://www.chess.com"]

[Event "Titled Tuesday Blitz February 14 Late 2023"]
[White "Brilej, Jaka"]
[Black "Bongo Akanga Ndjila, Barthelemy"]
[WhiteFideId "14618818"]
[BlackFideId "10609431"]
[WhiteElo "2321"]
[BlackElo "1824"]
[Result "1-0"]
[Round "01"]
[TimeControl "180+2"]
[Date "2023.02.14"]
[WhiteClock "0:00:53"]
[BlackClock "0:00:13"]

1. e4 {[%clk 0:02:58]}  e6 {[%clk 0:02:53]} 2. d4 {[%clk 0:02:55]}  d5 {[%clk 0:02:54]} 3. Bd3 {[%clk 0:02:53]}  Nf6 {[%clk 0:02:53]} 4. e5 {[%clk 0:02:49]}  Nfd7 {[%clk 0:02:52]} 5. Nf3 {[%clk 0:02:42]}  c5 {[%clk 0:02:52]} 6. c3 {[%clk 0:02:42]}  Nc6 {[%clk 0:02:52]} 7. O-O {[%clk 0:02:41]}  a6 {[%clk 0:02:52]} 8. Qe2 {[%clk 0:02:35]}  b5 {[%clk 0:02:51]} 9. Bg5 {[%clk 0:02:32]}  Be7 {[%clk 0:02:48]} 10. Bxe7 {[%clk 0:02:31]}  Qxe7 {[%clk 0:02:48]} 11. Nbd2 {[%clk 0:02:32]}  Bb7 {[%clk 0:02:44]} 12. Rac1 {[%clk 0:02:16]}  h6 {[%clk 0:02:41]} 13. Rfe1 {[%clk 0:02:15]}  O-O {[%clk 0:02:40]} 14. Qe3 {[%clk 0:02:09]}  Rae8 {[%clk 0:02:31]} 15. Nf1 {[%clk 0:02:09]}  f6 {[%clk 0:02:23]} 16. exf6 {[%clk 0:02:08]}  Rxf6 {[%clk 0:02:22]} 17. Ng3 {[%clk 0:02:07]}  e5 {[%clk 0:01:55]} 18. dxe5 {[%clk 0:01:51]}  Ndxe5 {[%clk 0:01:52]} 19. Nxe5 {[%clk 0:01:51]}  Nxe5 {[%clk 0:01:37]} 20. Bb1 {[%clk 0:01:45]}  Re6 {[%clk 0:01:16]} 21. Kf1 {[%clk 0:01:16]}  Nc4 {[%clk 0:00:46]} 22. Qxe6+ {[%clk 0:01:14]}  Qxe6 {[%clk 0:00:46]} 23. Rxe6 {[%clk 0:01:15]}  Rxe6 {[%clk 0:00:46]} 24. b3 {[%clk 0:01:15]}  Nd2+ {[%clk 0:00:44]} 25. Kg1 {[%clk 0:01:13]}  Nxb1 {[%clk 0:00:44]} 26. Rxb1 {[%clk 0:01:13]}  d4 {[%clk 0:00:43]} 27. cxd4 {[%clk 0:01:10]}  cxd4 {[%clk 0:00:43]} 28. Rd1 {[%clk 0:01:11]}  Rd6 {[%clk 0:00:41]} 29. Nf5 {[%clk 0:01:05]}  Rd5 {[%clk 0:00:37]} 30. Ne7+ {[%clk 0:01:04]}  Kf7 {[%clk 0:00:26]} 31. Nxd5 {[%clk 0:01:05]}  Bxd5 {[%clk 0:00:26]} 32. Rxd4 {[%clk 0:01:05]}  Ke6 {[%clk 0:00:27]} 33. f4 {[%clk 0:01:05]}  Kd6 {[%clk 0:00:26]} 34. b4 {[%clk 0:01:03]}  Ke6 {[%clk 0:00:24]} 35. Kf2 {[%clk 0:01:00]}  Bxa2 {[%clk 0:00:23]} 36. Ke3 {[%clk 0:00:58]}  Bc4 {[%clk 0:00:22]} 37. g4 {[%clk 0:00:54]}  g6 {[%clk 0:00:21]} 38. Rd8 {[%clk 0:00:53]}  Kf6 {[%clk 0:00:16]} 39. Ra8 {[%clk 0:00:52]}  g5 {[%clk 0:00:14]} 40. Rxa6+ {[%clk 0:00:51]}  Kf7 {[%clk 0:00:13]} 41. Rxh6 {[%clk 0:00:50]}  gxf4+ {[%clk 0:00:14]} 42. Kxf4 {[%clk 0:00:51]}  Kg7 {[%clk 0:00:14]} 43. g5 {[%clk 0:00:51]}  Bf7 {[%clk 0:00:12]} 44. h4 {[%clk 0:00:52]}  Bg6 {[%clk 0:00:13]} 45. Rxg6+ {[%clk 0:00:51]}  Kxg6 {[%clk 0:00:13]} 46. Kg4 {[%clk 0:00:52]}  Kg7 {[%clk 0:00:13]} 47. h5 {[%clk 0:00:53]} 1-0


[Site "https://www.chess.com"]

[Event "Titled Tuesday Blitz February 14 Late 2023"]
[White "Urbina Perez, Juan Antonio"]
[Black "Levine, David"]
[WhiteFideId "2217368"]
[BlackFideId "2011611"]
[WhiteElo "2266"]
[BlackElo "2040"]
[Result "0-1"]
[Round "01"]
[TimeControl "180+2"]
[Date "2023.02.14"]
[WhiteClock "0:00:10"]
[BlackClock "0:00:27"]

1. e4 {[%clk 0:02:59]}  e5 {[%clk 0:02:59]} 2. Nf3 {[%clk 0:02:58]}  Nc6 {[%clk 0:02:59]} 3. Bc4 {[%clk 0:02:58]}  Nf6 {[%clk 0:02:58]} 4. d3 {[%clk 0:02:59]}  h6 {[%clk 0:02:58]} 5. a4 {[%clk 0:02:57]}  d6 {[%clk 0:02:57]} 6. a5 {[%clk 0:02:57]}  a6 {[%clk 0:02:57]} 7. O-O {[%clk 0:02:55]}  g5 {[%clk 0:02:57]} 8. c3 {[%clk 0:02:53]}  Bg7 {[%clk 0:02:55]} 9. b4 {[%clk 0:02:50]}  O-O {[%clk 0:02:53]} 10. Be3 {[%clk 0:02:49]}  d5 {[%clk 0:02:49]} 11. exd5 {[%clk 0:02:44]}  Nxd5 {[%clk 0:02:49]} 12. Bc5 {[%clk 0:02:44]}  Re8 {[%clk 0:02:47]} 13. Qb3 {[%clk 0:02:41]}  Be6 {[%clk 0:02:46]} 14. Re1 {[%clk 0:02:40]}  Nf4 {[%clk 0:02:34]} 15. Bxe6 {[%clk 0:02:27]}  Rxe6 {[%clk 0:02:33]} 16. Na3 {[%clk 0:02:06]}  Qxd3 {[%clk 0:02:28]} 17. Rad1 {[%clk 0:01:58]}  Qf5 {[%clk 0:02:26]} 18. Nc4 {[%clk 0:01:50]}  e4 {[%clk 0:02:17]} 19. Ne3 {[%clk 0:01:47]}  Qg6 {[%clk 0:02:11]} 20. Nd4 {[%clk 0:01:42]}  Nxd4 {[%clk 0:02:01]} 21. Bxd4 {[%clk 0:01:43]}  Nd3 {[%clk 0:01:58]} 22. Re2 {[%clk 0:01:32]}  Rae8 {[%clk 0:01:57]} 23. Bxg7 {[%clk 0:01:24]}  Kxg7 {[%clk 0:01:56]} 24. Nd5 {[%clk 0:01:20]}  Rc8 {[%clk 0:01:41]} 25. c4 {[%clk 0:01:19]}  c6 {[%clk 0:01:38]} 26. Qc3+ {[%clk 0:01:16]}  Kg8 {[%clk 0:01:31]} 27. Nb6 {[%clk 0:01:15]}  Rce8 {[%clk 0:01:29]} 28. Nd7 {[%clk 0:01:06]}  f5 {[%clk 0:01:20]} 29. f3 {[%clk 0:01:01]}  Nf4 {[%clk 0:01:19]} 30. Re3 {[%clk 0:00:44]}  exf3 {[%clk 0:00:59]} 31. Rxe6 {[%clk 0:00:45]}  Rxe6 {[%clk 0:00:55]} 32. Kf2 {[%clk 0:00:40]}  fxg2 {[%clk 0:00:48]} 33. Qd3 {[%clk 0:00:22]}  Nxd3+ {[%clk 0:00:47]} 34. Rxd3 {[%clk 0:00:22]}  f4 {[%clk 0:00:43]} 35. Nc5 {[%clk 0:00:20]}  Re8 {[%clk 0:00:33]} 36. Kxg2 {[%clk 0:00:19]}  Qh5 {[%clk 0:00:30]} 37. Nd7 {[%clk 0:00:12]}  Re2+ {[%clk 0:00:28]} 38. Kh1 {[%clk 0:00:10]}  Qxh2# {[%clk 0:00:27]} 0-1


[Site "https://www.chess.com"]

[Event "Titled Tuesday Blitz February 14 Late 2023"]
[White "Bilan, Danila"]
[Black "Cruz Gomez, Miguel Angel"]
[WhiteFideId "24161918"]
[BlackFideId "5137160"]
[WhiteElo "2303"]
[BlackElo "1950"]
[Result "1-0"]
[Round "01"]
[TimeControl "180+2"]
[Date "2023.02.14"]
[WhiteClock "0:02:17"]
[BlackClock "0:01:47"]

1. d4 {[%clk 0:02:59]}  Nf6 {[%clk 0:02:57]} 2. Nf3 {[%clk 0:02:59]}  e6 {[%clk 0:02:56]} 3. g3 {[%clk 0:02:57]}  b6 {[%clk 0:02:44]} 4. Bg2 {[%clk 0:02:57]}  Bb7 {[%clk 0:02:45]} 5. O-O {[%clk 0:02:58]}  Be7 {[%clk 0:02:31]} 6. c4 {[%clk 0:02:57]}  O-O {[%clk 0:02:24]} 7. d5 {[%clk 0:02:56]}  exd5 {[%clk 0:02:15]} 8. Nh4 {[%clk 0:02:56]}  g6 {[%clk 0:02:02]} 9. cxd5 {[%clk 0:02:55]}  Na6 {[%clk 0:01:48]} 10. d6 {[%clk 0:02:42]}  Bxg2 {[%clk 0:01:48]} 11. dxe7 {[%clk 0:02:41]}  Qxe7 {[%clk 0:01:49]} 12. Nxg2 {[%clk 0:02:39]}  d5 {[%clk 0:01:48]} 13. Nc3 {[%clk 0:02:27]}  c6 {[%clk 0:01:47]} 14. Bg5 {[%clk 0:02:17]} 1-0


[Site "https://www.chess.com"]

[Event "Titled Tuesday Blitz February 14 Late 2023"]
[White "Sanchez, Sebastian Felipe"]
[Black "Sarana, Alexey"]
[WhiteFideId "4403304"]
[BlackFideId "24133795"]
[WhiteElo "2427"]
[BlackElo "2685"]
[Result "0-1"]
[Round "02"]
[TimeControl "180+2"]
[Date "2023.02.14"]
[WhiteClock "0:00:19"]
[BlackClock "0:02:21"]

1. d4 {[%clk 0:02:59]}  Nf6 {[%clk 0:02:59]} 2. c4 {[%clk 0:02:58]}  e6 {[%clk 0:02:59]} 3. g3 {[%clk 0:02:58]}  d5 {[%clk 0:02:59]} 4. Nf3 {[%clk 0:02:57]}  Bb4+ {[%clk 0:02:59]} 5. Nbd2 {[%clk 0:02:57]}  dxc4 {[%clk 0:02:59]} 6. Bg2 {[%clk 0:02:56]}  b5 {[%clk 0:02:58]} 7. a4 {[%clk 0:02:53]}  c6 {[%clk 0:02:58]} 8. O-O {[%clk 0:02:52]}  Bb7 {[%clk 0:02:49]} 9. Qc2 {[%clk 0:02:38]}  Nbd7 {[%clk 0:02:47]} 10. b3 {[%clk 0:02:15]}  c3 {[%clk 0:02:44]} 11. Nb1 {[%clk 0:02:09]}  bxa4 {[%clk 0:02:44]} 12. Rxa4 {[%clk 0:02:00]}  c5 {[%clk 0:02:44]} 13. Rd1 {[%clk 0:01:46]}  Be4 {[%clk 0:02:41]} 14. Ne1 {[%clk 0:01:22]}  Bxc2 {[%clk 0:02:40]} 15. Nxc2 {[%clk 0:01:22]}  O-O {[%clk 0:02:30]} 16. dxc5 {[%clk 0:01:20]}  Bxc5 {[%clk 0:02:31]} 17. Bxa8 {[%clk 0:01:18]}  Qxa8 {[%clk 0:02:32]} 18. Nxc3 {[%clk 0:01:13]}  Ne5 {[%clk 0:02:32]} 19. Be3 {[%clk 0:01:06]}  Bxe3 {[%clk 0:02:31]} 20. Nxe3 {[%clk 0:01:07]}  Qc6 {[%clk 0:02:30]} 21. Rc1 {[%clk 0:00:59]}  Qb7 {[%clk 0:02:30]} 22. Ra5 {[%clk 0:00:51]}  Nc6 {[%clk 0:02:29]} 23. Rb5 {[%clk 0:00:51]}  Qd7 {[%clk 0:02:28]} 24. Rd1 {[%clk 0:00:50]}  Qe7 {[%clk 0:02:28]} 25. Nc4 {[%clk 0:00:48]}  Rd8 {[%clk 0:02:27]} 26. Rxd8+ {[%clk 0:00:47]}  Qxd8 {[%clk 0:02:28]} 27. Rc5 {[%clk 0:00:43]}  Qd7 {[%clk 0:02:27]} 28. e3 {[%clk 0:00:40]}  h5 {[%clk 0:02:26]} 29. h3 {[%clk 0:00:39]}  g6 {[%clk 0:02:23]} 30. Nb5 {[%clk 0:00:19]}  Ne4 {[%clk 0:02:21]} 0-1


[Site "https://www.chess.com"]

[Event "Titled Tuesday Blitz February 14 Late 2023"]
[White "Katz, Alexander"]
[Black "Salem, A.R. Saleh"]
[WhiteFideId "2039796"]
[BlackFideId "9301348"]
[WhiteElo "2470"]
[BlackElo "2677"]
[Result "0-1"]
[Round "02"]
[TimeControl "180+2"]
[Date "2023.02.14"]
[WhiteClock "0:00:06"]
[BlackClock "0:00:20"]

1. e4 {[%clk 0:00:17]}  e5 {[%clk 0:02:58]} 2. Nf3 {[%clk 0:00:17]}  Nc6 {[%clk 0:02:58]} 3. Bc4 {[%clk 0:00:18]}  Nf6 {[%clk 0:02:58]} 4. d3 {[%clk 0:00:18]}  Bc5 {[%clk 0:02:58]} 5. c3 {[%clk 0:00:19]}  O-O {[%clk 0:02:57]} 6. O-O {[%clk 0:00:19]}  d6 {[%clk 0:02:57]} 7. Nbd2 {[%clk 0:00:19]}  a6 {[%clk 0:02:58]} 8. Bb3 {[%clk 0:00:20]}  h6 {[%clk 0:02:54]} 9. h3 {[%clk 0:00:21]}  Re8 {[%clk 0:02:55]} 10. Re1 {[%clk 0:00:21]}  Be6 {[%clk 0:02:56]} 11. Bxe6 {[%clk 0:00:22]}  Rxe6 {[%clk 0:02:56]} 12. Nf1 {[%clk 0:00:23]}  d5 {[%clk 0:02:56]} 13. Ng3 {[%clk 0:00:21]}  Qd7 {[%clk 0:02:49]} 14. Qe2 {[%clk 0:00:19]}  Rd8 {[%clk 0:02:48]} 15. Be3 {[%clk 0:00:20]}  d4 {[%clk 0:02:40]} 16. cxd4 {[%clk 0:00:19]}  Nxd4 {[%clk 0:02:41]} 17. Nxd4 {[%clk 0:00:19]}  Bxd4 {[%clk 0:02:42]} 18. Rac1 {[%clk 0:00:17]}  c6 {[%clk 0:02:39]} 19. Red1 {[%clk 0:00:13]}  Bxe3 {[%clk 0:01:48]} 20. Qxe3 {[%clk 0:00:14]}  h5 {[%clk 0:01:49]} 21. Nf5 {[%clk 0:00:14]}  g6 {[%clk 0:01:49]} 22. Qg5 {[%clk 0:00:13]}  Nh7 {[%clk 0:01:40]} 23. Qg3 {[%clk 0:00:13]}  Kf8 {[%clk 0:01:29]} 24. Ne3 {[%clk 0:00:13]}  Qe7 {[%clk 0:01:15]} 25. Nc4 {[%clk 0:00:13]}  Rd4 {[%clk 0:01:14]} 26. Qe3 {[%clk 0:00:13]}  Qf6 {[%clk 0:01:08]} 27. Na5 {[%clk 0:00:10]}  Re7 {[%clk 0:01:07]} 28. Nb3 {[%clk 0:00:10]}  Rd8 {[%clk 0:01:03]} 29. Qb6 {[%clk 0:00:10]}  Rde8 {[%clk 0:00:48]} 30. Nc5 {[%clk 0:00:09]}  Kg7 {[%clk 0:00:46]} 31. Nxb7 {[%clk 0:00:06]}  Rb8 {[%clk 0:00:46]} 32. Rxc6 {[%clk 0:00:07]}  Rexb7 {[%clk 0:00:41]} 33. Qxa6 {[%clk 0:00:05]}  Qe7 {[%clk 0:00:29]} 34. b3 {[%clk 0:00:06]}  Ra7 {[%clk 0:00:28]} 35. Qc4 {[%clk 0:00:06]}  Rxa2 {[%clk 0:00:29]} 36. Rc7 {[%clk 0:00:07]}  Qf6 {[%clk 0:00:28]} 37. Rf1 {[%clk 0:00:07]}  Ng5 {[%clk 0:00:28]} 38. Rc6 {[%clk 0:00:08]}  Ne6 {[%clk 0:00:28]} 39. Qd5 {[%clk 0:00:06]}  Rd8 {[%clk 0:00:28]} 40. Rxe6 {[%clk 0:00:05]}  fxe6 {[%clk 0:00:27]} 41. Qb7+ {[%clk 0:00:06]}  Qf7 {[%clk 0:00:28]} 42. Qb6 {[%clk 0:00:07]}  Rxd3 {[%clk 0:00:28]} 43. Qc5 {[%clk 0:00:07]}  Rxb3 {[%clk 0:00:19]} 44. Qxe5+ {[%clk 0:00:07]}  Kh7 {[%clk 0:00:19]} 45. f4 {[%clk 0:00:06]}  Rbb2 {[%clk 0:00:18]} 46. Rc1 {[%clk 0:00:04]}  Rxg2+ {[%clk 0:00:18]} 47. Kf1 {[%clk 0:00:05]}  Raf2+ {[%clk 0:00:18]} 48. Ke1 {[%clk 0:00:06]}  Re2+ {[%clk 0:00:18]} 49. Kf1 {[%clk 0:00:06]}  Ref2+ {[%clk 0:00:19]} 50. Ke1 {[%clk 0:00:06]}  Rxf4 {[%clk 0:00:20]} 51. Rc7 {[%clk 0:00:06]}  Rf1# {[%clk 0:00:20]} 0-1


[Site "https://www.chess.com"]